bitfinex-derivatives/quotes_BNBF0:USTF0_20250329
["timestamp","ask_amount","ask_price","bid_price","bid_amount"]
[1743210615262,1.52003764,623.51,621.66,3.261]
[1743210615461,0.32077499,623.49,621.66,3.261]
[1743210615664,1.52002995,623.48,621.66,3.261]
[1743210615858,0.32079042,623.46,621.66,3.261]
[1743210616063,1.52002995,623.45,621.66,3.261]
[1743210616363,0.32080586,623.43,621.66,3.261]
[1743210616563,2.45975617,623.42,621.66,3.261]
[1743210616764,1.52003129,623.41,621.66,3.261]
[1743210616962,1.52003129,623.4,621.66,3.261]
[1743210617261,1.52003129,623.39,621.66,3.261]
[1743210617565,0.32083674,623.37,621.66,3.261]
[1743210617763,2.45975751,623.36,621.66,3.261]
[1743210617963,0.32085218,623.34,621.66,3.261]
[1743210618266,1.52003129,623.33,621.66,4.057]
[1743210618566,0.32086762,623.31,621.66,4.057]
[1743210618764,1.22461676,623.3,621.66,4.057]
[1743210618963,0.32088307,623.28,621.66,4.057]
[1743210619164,1.52003162,623.27,621.66,4.057]
[1743210619464,0.32089851,623.25,621.66,4.057]
[1743210619662,1.52003162,623.24,621.66,4.057]
[1743210619858,1.52003162,623.23,621.66,4.057]
[1743210620061,1.52003162,623.22,621.66,4.057]
[1743210620261,2.45975784,623.21,621.66,4.057]
[1743210620459,1.84095588,623.2,621.66,4.057]
[1743210620659,0.32093456,623.18,621.66,4.057]
[1743210620863,1.52003162,623.17,621.66,4.057]
[1743210621065,0.32095001,623.15,621.66,4.057]
[1743210621261,1.52003162,623.14,621.66,4.057]
[1743210621459,0.32096546,623.12,621.66,4.057]
[1743210621662,1.52003162,623.11,621.66,4.057]
[1743210621966,0.32098091,623.09,621.66,4.057]
[1743210622264,2.45975709,623.08,621.66,4.057]
[1743210622565,1.52003087,623.07,621.66,4.057]
[1743210622761,1.22461676,623.06,621.66,4.057]
[1743210623065,1.52003087,623.05,621.66,4.057]
[1743210623261,1.52003087,623.04,621.66,4.057]
[1743210623462,1.52003087,623.03,621.66,4.057]
[1743210623662,1.52003087,623.02,621.66,4.057]
[1743210623863,1.52003087,623.01,621.66,4.057]
[1743210624059,0.32103244,622.99,621.66,4.057]
[1743210624260,1.52003087,622.98,621.66,4.057]
[1743210624459,1.52003087,622.97,621.66,4.057]
[1743210624663,0.32105305,622.95,621.66,4.057]
[1743210624859,2.45975709,622.94,621.66,4.057]
[1743210625064,0.32106851,622.92,621.66,4.057]
[1743210625366,1.52003087,622.91,621.66,4.057]
[1743210625566,1.54569558,622.9,621.66,4.057]
[1743210625767,1.54570073,622.89,621.66,4.057]
[1743210625967,1.22461676,622.88,621.66,4.057]
[1743210626168,1.22461676,622.87,621.66,4.057]
[1743210626467,1.5457162,622.86,621.66,4.057]
[1743210626669,1.54572135,622.85,621.66,4.057]
[1743210626868,1.54572651,622.84,621.66,4.057]
[1743210627067,1.54573167,622.83,621.66,4.057]
[1743210627271,1.54573682,622.82,621.66,4.057]
[1743210627471,1.54574198,622.81,621.66,4.057]
[1743210627670,1.54574713,622.8,621.66,4.057]
[1743210627867,1.54575229,622.79,621.66,4.057]
[1743210628067,1.54575745,622.78,621.66,4.057]
[1743210628271,1.5457626,622.77,621.66,4.057]
[1743210628466,1.54576776,622.76,621.66,4.057]
[1743210628671,1.54577292,622.75,621.66,4.057]
[1743210628872,1.54577807,622.74,621.66,4.057]
[1743210629071,1.22461676,622.73,621.66,4.057]
[1743210629370,1.22461676,622.72,621.66,4.057]
[1743210629566,2.16434298,622.71,621.66,4.057]
[1743210629767,1.22461676,622.7,621.66,4.057]
[1743210629966,2.16434298,622.69,621.66,4.057]
[1743210630166,1.22461676,622.68,621.66,4.057]
[1743210630369,2.16434298,622.67,621.66,4.057]
[1743210630569,1.22461676,622.66,621.66,4.057]
[1743210630767,1.22461676,622.65,621.66,4.057]
[1743210630972,1.22461676,622.64,621.66,4.057]
[1743210631172,1.22461676,622.63,621.66,4.057]
[1743210631367,1.22461676,622.62,621.66,4.057]
[1743210631573,1.22461676,622.61,621.66,4.057]
[1743210631767,1.22461676,622.6,621.66,4.057]
[1743210631967,1.22461676,622.59,621.66,4.057]
[1743210632170,1.22461676,622.58,621.66,4.057]
[1743210632370,1.22461676,622.57,621.66,4.057]
[1743210632573,1.22418632,622.56,621.66,4.057]
[1743210632776,1.22418632,622.55,621.66,4.057]
[1743210633071,1.22418632,622.54,621.66,4.057]
[1743210633273,1.22418632,622.53,621.66,4.057]
[1743210633474,1.22418632,622.52,621.66,4.057]
[1743210633673,1.22418632,622.51,621.66,4.057]
[1743210633874,1.22418632,622.5,621.66,4.057]
[1743210634074,2.16391254,622.49,621.66,4.057]
[1743210634378,1.22418632,622.48,621.66,4.057]
[1743210634574,1.22418632,622.47,621.66,4.057]
[1743210634775,1.22418632,622.46,621.66,4.057]
[1743210635075,1.22418632,622.45,621.66,4.057]
[1743210635271,1.22418632,622.44,621.66,4.057]
[1743210635573,1.22418632,622.43,621.66,4.057]
[1743210635873,1.22418632,622.42,621.66,4.057]
[1743210636074,1.22418632,622.41,621.66,4.057]
[1743210636275,1.22418632,622.4,621.66,4.832]
[1743210636571,1.22418632,622.39,621.66,4.832]
[1743210636776,1.22418632,622.38,621.66,4.832]
[1743210636977,1.22418632,622.37,621.66,4.832]
[1743210637177,1.22418632,622.36,621.66,4.832]
[1743210637373,1.22418632,622.35,621.66,4.832]
[1743210637574,1.22418632,622.34,621.66,4.832]
[1743210637775,1.22418632,622.33,621.66,4.832]
[1743210637973,1.22418632,622.32,621.66,4.832]
[1743210638175,1.22418632,622.31,621.66,4.832]
[1743210638375,1.22418632,622.3,621.66,4.832]
[1743210638572,1.22418632,622.29,621.66,4.832]
[1743210638775,1.22418632,622.28,621.66,4.832]
[1743210638976,1.22418632,622.27,621.66,4.832]
[1743210639173,1.22418632,622.26,621.66,4.832]
[1743210639477,1.22418632,622.25,621.66,4.832]
[1743210639677,1.22418632,622.24,621.66,4.832]
[1743210639873,1.22418632,622.23,621.66,4.832]
[1743210640076,1.22418632,622.22,621.66,4.832]
[1743210640277,1.22418632,622.21,621.66,4.832]
[1743210640576,1.22405242,622.2,621.66,4.832]
[1743210640876,1.22405242,622.19,621.66,4.832]
[1743210641075,1.22405242,622.18,621.66,4.832]
[1743210641276,1.22405242,622.17,621.66,4.832]
[1743210641480,2.16377864,622.16,621.66,4.832]
[1743210641676,1.22405242,622.15,621.66,4.832]
[1743210641874,1.22405242,622.14,621.66,4.832]
[1743210642178,1.22405242,622.13,621.66,4.832]
[1743210642379,1.22405242,622.12,621.66,4.832]
[1743210642578,1.22405242,622.11,621.66,4.832]
[1743210642780,1.22405242,622.1,621.66,4.832]
[1743210642979,1.22405242,622.09,621.66,4.832]
[1743210643179,1.22405242,622.08,621.66,3.617]
[1743210643479,1.22405242,622.07,621.66,1.571]
[1743210643676,1.22405242,622.06,621.66,1.571]
[1743210643881,1.22405242,622.05,621.66,1.571]
[1743210644077,1.22405242,622.04,621.66,1.571]
[1743210644282,1.22405242,622.03,621.66,1.571]
[1743210644482,1.22405242,622.02,621.66,1.571]
[1743210644684,0.93972622,622.01,621.66,1.571]
[1743210645383,0.93972622,622.0,621.66,1.571]
[1743210646185,0.93972622,621.99,621.66,1.571]
[1743210646983,0.93972622,621.98,621.66,1.571]
[1743210647483,0.93972622,621.97,621.66,1.571]
[1743210647983,0.32116131,622.74,621.66,1.571]
[1743210648177,1.22404038,622.73,621.66,1.571]
[1743210648380,1.54521201,622.72,621.66,1.571]
[1743210648578,1.54521717,622.71,621.66,1.571]
[1743210648884,1.54522232,622.7,621.66,1.571]
[1743210649084,1.54522748,622.69,621.66,1.571]
[1743210649284,1.54523264,622.68,621.66,1.571]
[1743210649484,1.5452378,622.67,621.66,1.571]
[1743210649680,1.54524296,622.66,621.66,1.571]
[1743210649882,1.54524812,622.65,621.66,1.571]
[1743210650079,1.22404038,622.64,621.66,1.571]
[1743210650283,1.22404038,622.63,621.66,1.571]
[1743210650484,1.22404038,622.62,621.66,1.571]
[1743210650684,2.16335295,622.61,621.66,1.571]
[1743210650985,1.22404038,622.6,621.66,1.571]
[1743210651185,1.22404038,622.59,621.66,1.571]
[1743210651484,1.22404038,622.58,621.66,1.571]
[1743210651681,1.22404038,622.57,621.66,1.571]
[1743210651886,1.22404038,622.56,621.66,1.571]
[1743210652081,1.22404038,622.55,621.66,1.571]
[1743210652282,1.22404038,622.54,621.66,1.571]
[1743210652486,1.22404038,622.53,621.66,1.571]
[1743210652682,2.16335295,622.52,621.66,1.571]
[1743210652884,1.22404038,622.51,621.66,1.571]
[1743210653086,1.22404038,622.5,621.66,1.571]
[1743210653286,1.22404038,622.49,621.66,1.571]
[1743210653482,1.22404038,622.48,621.66,1.571]
[1743210653689,1.22404038,622.47,621.66,1.571]
[1743210653883,1.22404038,622.46,621.66,1.571]
[1743210654082,1.22404038,622.45,621.66,1.571]
[1743210654388,1.22404038,622.44,621.66,1.571]
[1743210654587,1.22404038,622.43,621.66,1.571]
[1743210654887,1.22404038,622.42,621.66,1.571]
[1743210655087,1.22404038,622.41,621.66,1.571]
[1743210655284,1.22404038,622.4,621.66,1.571]
[1743210655486,1.22404038,622.39,621.66,1.571]
[1743210655688,1.22404038,622.38,621.66,1.571]
[1743210655987,1.22404038,622.37,621.66,1.571]
[1743210656187,1.22424182,622.36,621.66,1.571]
[1743210656383,1.22424182,622.35,621.66,1.571]
[1743210656587,1.22424182,622.34,621.66,1.571]
[1743210656791,2.16355439,622.33,621.66,1.571]
[1743210657085,1.22424182,622.32,621.66,1.571]
[1743210657283,1.22424182,622.31,621.66,1.571]
[1743210657487,1.22424182,622.3,621.66,1.571]
[1743210657684,1.22424182,622.29,621.66,1.571]
[1743210657888,1.22424182,622.28,621.66,1.571]
[1743210658089,0.93931257,622.28,621.66,1.571]
[1743210658288,1.22432708,622.27,621.66,1.571]
[1743210658488,1.22432708,622.26,621.66,1.571]
[1743210658784,1.22432708,622.25,621.66,1.571]
[1743210658984,1.22432708,622.24,621.66,1.571]
[1743210659289,1.22432708,622.23,621.66,1.571]
[1743210659489,1.22432708,622.22,621.66,1.571]
[1743210659693,1.22432708,622.21,621.66,1.571]
[1743210659888,1.22432708,622.2,621.66,1.571]
[1743210660089,1.22432708,622.19,621.66,1.571]
[1743210660290,1.22432708,622.18,621.66,1.571]
[1743210660589,1.22432708,622.17,621.66,1.571]
[1743210660789,1.22432708,622.16,621.66,1.571]
[1743210660985,1.22432708,622.15,621.66,1.571]
[1743210661184,1.22432708,622.14,621.66,1.571]
[1743210661385,1.22432708,622.13,621.66,1.571]
[1743210661585,1.22432708,622.12,621.66,1.571]
[1743210661785,1.22432708,622.11,621.66,1.571]
[1743210661986,1.22432708,622.1,621.66,1.571]
[1743210662190,1.22432708,622.09,621.66,1.571]
[1743210662392,1.22432708,622.08,621.66,1.571]
[1743210662591,1.22432708,622.07,621.66,1.571]
[1743210662794,1.22432708,622.06,621.66,1.571]
[1743210662993,1.22432708,622.05,621.66,1.571]
[1743210663191,1.22432708,622.04,621.66,1.571]
[1743210663386,1.22432708,622.03,621.66,1.571]
[1743210663590,1.22432708,622.02,621.66,1.571]
[1743210663786,1.22432708,622.01,621.66,1.571]
[1743210663991,2.16363965,622.0,621.66,1.571]
[1743210664192,1.22432708,621.99,621.66,0.775]
[1743210664391,0.93931257,622.0,621.66,0.775]
[1743210664589,1.22473718,621.99,621.66,0.775]
[1743210664790,0.93931257,622.0,621.66,0.775]
[1743210664990,2.16404308,621.99,621.66,0.775]
[1743210665292,0.93931257,621.99,621.66,0.775]
[1743210665991,0.93931257,621.98,621.66,0.775]
[1743210666393,0.32120774,622.65,621.66,0.775]
[1743210666593,1.22491182,622.64,621.66,0.775]
[1743210666894,1.22491182,622.63,621.66,0.775]
[1743210667093,1.22491182,622.62,621.66,0.775]
[1743210667387,1.22491182,622.61,621.66,0.775]
[1743210667593,1.22491182,622.6,621.66,0.775]
[1743210667792,1.22491182,622.59,621.66,1.954]
[1743210667993,1.22491182,622.58,621.66,1.954]
[1743210668191,1.22491182,622.57,621.66,1.954]
[1743210668391,1.22491182,622.56,621.66,1.954]
[1743210668592,1.22491182,622.55,621.66,1.954]
[1743210668793,1.22491182,622.54,621.66,1.954]
[1743210668989,2.16488689,622.53,621.66,1.954]
[1743210669187,1.22491182,622.52,621.66,1.954]
[1743210669391,1.22491182,622.51,621.66,1.954]
[1743210669593,1.22491182,622.5,621.66,1.954]
[1743210669793,1.22491182,622.49,621.66,1.954]
[1743210669992,1.22491182,622.48,621.66,1.954]
[1743210670188,1.22491182,622.47,621.66,3.385]
[1743210670494,2.16488689,622.46,621.66,4.245]
[1743210670691,1.22491182,622.45,621.66,4.245]
[1743210670891,1.22491182,622.44,621.66,4.245]
[1743210671195,1.22491182,622.43,621.66,4.245]
[1743210671395,1.22491182,622.42,621.66,4.245]
[1743210671596,1.22491182,622.41,621.66,4.245]
[1743210671788,1.22491182,622.4,621.66,4.245]
[1743210671993,1.22491182,622.39,621.66,4.245]
[1743210672197,1.22491182,622.38,621.66,4.245]
[1743210672394,1.22491182,622.37,621.66,4.245]
[1743210672591,1.22491182,622.36,621.66,4.245]
[1743210672892,2.16488689,622.35,621.66,4.245]
[1743210673096,1.22491182,622.34,621.66,4.245]
[1743210673292,1.22491182,622.33,621.66,4.245]
[1743210673494,2.16488689,622.32,621.66,4.245]
[1743210673796,2.16488689,622.31,621.66,4.245]
[1743210673993,1.22491182,622.3,621.66,4.245]
[1743210674194,1.22491182,622.29,621.66,4.245]
[1743210674397,1.22491182,622.28,621.66,4.245]
[1743210674597,1.22491182,622.27,621.66,4.245]
[1743210674798,1.22491182,622.26,621.66,4.245]
[1743210674997,1.22491182,622.25,621.66,4.245]
[1743210675197,1.22491182,622.24,621.66,4.245]
[1743210675500,1.22491182,622.23,621.66,4.245]
[1743210675797,1.2255373,622.22,621.66,4.245]
[1743210675993,1.2255373,622.21,621.66,4.245]
[1743210676198,1.2255373,622.2,621.66,4.245]
[1743210676400,1.2255373,622.19,621.66,4.245]
[1743210676598,1.2255373,622.18,621.66,4.245]
[1743210676793,1.2255373,622.17,621.66,4.245]
[1743210676997,1.2255373,622.16,621.66,4.245]
[1743210677299,1.2255373,622.15,621.66,4.245]
[1743210677498,1.2255373,622.14,621.66,4.245]
[1743210677701,1.2255373,622.13,621.66,4.245]
[1743210677999,1.2255373,622.12,621.66,4.245]
[1743210678199,1.2255373,622.11,621.66,4.245]
[1743210678399,1.2255373,622.1,621.66,4.245]
[1743210678599,1.2255373,622.09,621.66,4.245]
[1743210678800,2.16551237,622.08,621.66,4.245]
[1743210679000,1.2255373,622.07,621.66,4.245]
[1743210679303,1.2255373,622.06,621.66,4.245]
[1743210679500,1.2255373,622.05,621.66,4.245]
[1743210679799,2.16551237,622.04,621.66,4.245]
[1743210680000,1.2255373,622.03,621.66,4.245]
[1743210680198,1.2255373,622.02,621.66,4.245]
[1743210680394,2.16551237,622.01,621.66,4.245]
[1743210680601,1.2255373,622.0,621.66,4.245]
[1743210680799,1.2255373,621.99,621.66,4.245]
[1743210680996,0.93997507,622.01,621.66,4.245]
[1743210681197,0.93997507,621.98,621.66,4.245]
[1743210681901,0.93997507,621.97,621.66,4.245]
[1743210682909,0.93997507,621.96,621.66,4.245]
[1743210683112,0.93997507,621.95,621.66,4.245]
[1743210683911,0.32120774,622.65,621.66,4.245]
[1743210684111,1.22552747,622.64,621.66,4.245]
[1743210684309,1.22552747,622.63,621.66,4.245]
[1743210684509,1.22552747,622.62,621.66,4.245]
[1743210684810,2.1659614,622.61,621.66,4.245]
[1743210685012,1.22552747,622.6,621.66,4.245]
[1743210685210,1.22552747,622.59,621.66,4.245]
[1743210685410,1.22552747,622.58,621.66,4.245]
[1743210685609,1.22552747,622.57,621.66,4.245]
[1743210685809,1.22552747,622.56,621.66,4.245]
[1743210686006,1.22552747,622.55,621.66,4.245]
[1743210686211,2.1659614,622.54,621.66,4.245]
[1743210686411,1.22552747,622.53,621.66,4.245]
[1743210686607,1.22552747,622.52,621.66,4.245]
[1743210686809,1.22552747,622.51,621.66,4.245]
[1743210687114,1.22552747,622.5,621.66,4.245]
[1743210687317,1.22552747,622.49,621.66,5.113]
[1743210687615,2.1659614,622.48,621.66,5.113]
[1743210687809,1.22552747,622.47,621.66,5.113]
[1743210688014,2.1659614,622.46,621.66,5.113]
[1743210688210,2.1659614,622.45,621.66,5.113]
[1743210688415,1.22552747,622.44,621.66,5.113]
[1743210688615,1.22552747,622.43,621.66,5.113]
[1743210688911,1.22552747,622.42,621.66,5.113]
[1743210689115,1.22552747,622.41,621.66,5.113]
[1743210689317,1.22554608,622.4,621.66,5.113]
[1743210689513,1.22554608,622.39,621.66,5.113]
[1743210689714,1.22554608,622.38,621.66,5.113]
[1743210689914,1.22554608,622.37,621.66,5.113]
[1743210690111,1.22554608,622.36,621.66,5.113]
[1743210690316,1.22554608,622.35,621.66,5.113]
[1743210690517,1.22554608,622.34,621.66,5.113]
[1743210690715,1.22554608,622.33,621.66,5.113]
[1743210690918,1.22554608,622.32,621.66,5.113]
[1743210691115,1.22554608,622.31,621.66,5.113]
[1743210691421,2.16595274,622.3,621.66,5.113]
[1743210691622,1.22551881,622.29,621.66,5.113]
[1743210691822,1.22551881,622.28,621.66,5.113]
[1743210692024,1.22551881,622.27,621.66,5.113]
[1743210692223,2.16595274,622.26,621.66,5.113]
[1743210692422,1.22551881,622.25,621.66,5.113]
[1743210692623,1.22551881,622.24,621.66,5.113]
[1743210692819,1.22551881,622.23,621.66,5.113]
[1743210693020,1.22551881,622.22,621.66,5.113]
[1743210693223,1.22551881,622.21,621.66,5.113]
[1743210693423,1.22551881,622.2,621.66,5.113]
[1743210693621,1.22551881,622.19,621.66,5.113]
[1743210693822,1.22551881,622.18,621.66,5.113]
[1743210694021,1.22551881,622.17,621.66,5.113]
[1743210694323,1.22551881,622.16,621.66,5.113]
[1743210694523,2.16595274,622.15,621.66,5.113]
[1743210694823,2.16595274,622.14,621.66,5.113]
[1743210695122,1.22551881,622.13,621.66,5.113]
[1743210695323,2.16595274,622.12,621.66,5.113]
[1743210695623,1.22551881,622.11,621.66,5.113]
[1743210695823,1.22551881,622.1,621.66,5.113]
[1743210696018,1.22551881,622.09,621.66,5.113]
[1743210696218,1.22551881,622.08,621.66,5.113]
[1743210696420,1.22551881,622.07,621.66,2.907]
[1743210696628,1.22551881,622.06,621.66,2.907]
[1743210696823,1.22551881,622.05,621.66,2.907]
[1743210697027,1.22551881,622.04,621.66,2.907]
[1743210697325,1.2253377,622.03,621.66,2.907]
[1743210697524,1.2253377,622.02,621.66,2.907]
[1743210697723,1.2253377,622.01,621.66,2.907]
[1743210697923,1.2253377,622.0,621.66,2.907]
[1743210698125,1.2253377,621.99,621.66,2.907]
[1743210698324,1.2253377,621.98,621.66,2.907]
[1743210698524,1.2253377,621.97,621.66,2.907]
[1743210698826,1.2253377,621.96,621.66,2.047]
[1743210699126,2.16577163,621.95,621.66,2.047]
[1743210699325,1.2253377,621.94,621.66,2.047]
[1743210699519,1.2253377,621.93,621.66,2.047]
[1743210699723,1.2253377,621.92,621.66,2.047]
[1743210699925,1.2253377,621.91,621.66,2.047]
[1743210700124,1.2253377,621.9,621.66,2.047]
[1743210700326,1.2253377,621.89,621.66,2.047]
[1743210700627,0.94043393,621.9,621.66,2.047]
[1743210700928,2.16507063,621.89,621.66,2.047]
[1743210701128,0.94043393,621.89,621.66,2.047]
[1743210701529,0.94043393,621.88,621.66,2.047]
[1743210701730,0.94043393,621.88,621.66,0.868]
[1743210702131,0.94043393,621.87,621.66,0.868]
[1743210702432,0.94043393,621.86,621.66,0.868]
[1743210703132,0.94043393,621.85,621.66,0.868]
[1743210703524,0.27993291,622.04,621.66,0.868]
[1743210703730,1.22421905,622.03,621.66,0.868]
[1743210704027,2.16369565,622.02,621.66,0.868]
[1743210704225,1.22421905,622.01,621.66,0.868]
[1743210704427,1.22421905,622.0,621.66,0.868]
[1743210704628,1.22421905,621.99,621.66,0.868]
[1743210704833,1.22421905,621.98,621.66,0.868]
[1743210705032,1.22421905,621.97,621.66,0.868]
[1743210705233,1.22421905,621.96,621.66,0.868]
[1743210705432,2.16369565,621.95,621.66,0.868]
[1743210705633,1.22421905,621.94,621.66,0.868]
[1743210705833,1.22421905,621.93,621.66,0.868]
[1743210706027,1.22421905,621.92,621.66,0.868]
[1743210706230,1.22421905,621.91,621.66,0.868]
[1743210706427,0.9394766,621.93,621.66,0.868]
[1743210706627,2.16337841,621.92,621.66,0.868]
[1743210706831,1.22390181,621.91,621.66,0.868]
[1743210707036,0.9394766,621.92,621.66,0.868]
[1743210707333,2.16337438,621.91,621.66,0.868]
[1743210707534,0.9394766,621.91,621.66,0.868]
[1743210708435,0.9394766,621.9,621.66,0.868]
[1743210709229,0.9394766,621.89,621.66,0.868]
[1743210709629,0.9394766,621.88,621.66,0.868]
[1743210710235,0.9394766,621.87,621.66,0.868]
[1743210710736,0.9394766,621.86,621.66,0.868]
[1743210711333,0.32121289,622.64,621.66,0.868]
[1743210711635,1.22355914,622.63,621.66,0.868]
[1743210711835,1.54478235,622.62,621.66,1.706]
[1743210712037,1.54478751,622.61,621.66,1.706]
[1743210712230,1.54479267,622.6,621.66,1.706]
[1743210712435,1.54479783,622.59,621.66,1.706]
[1743210712635,1.54480299,622.58,621.66,1.706]
[1743210712836,1.54480815,622.57,621.66,1.706]
[1743210713035,1.54476069,622.56,621.66,1.706]
[1743210713336,2.48373031,622.55,621.66,1.706]
[1743210713534,1.54477101,622.54,621.66,1.706]
[1743210713837,1.54477617,622.53,621.66,1.706]
[1743210714035,1.22350652,622.52,621.66,1.706]
[1743210714230,1.22350652,622.51,621.66,1.706]
[1743210714434,1.22350652,622.5,621.66,1.706]
[1743210714634,1.22350652,622.49,621.66,1.706]
[1743210714833,1.22350652,622.48,621.66,1.706]
[1743210715030,1.22350652,622.47,621.66,1.706]
[1743210715237,1.22350652,622.46,621.66,1.706]
[1743210715437,1.22350652,622.45,621.66,1.706]
[1743210715738,1.22350652,622.44,621.66,1.706]
[1743210715937,1.22350652,622.43,621.66,1.706]
[1743210716136,0.93896446,622.44,621.66,1.706]
[1743210716137,1.22350652,622.42,621.66,1.706]
[1743210716338,2.16247098,622.41,621.66,1.706]
[1743210716538,1.22350652,622.4,621.66,1.706]
[1743210716740,1.22350652,622.39,621.66,1.706]
[1743210717041,1.22350652,622.38,621.66,1.706]
[1743210717241,1.22350652,622.37,621.66,1.706]
[1743210717538,1.22350652,622.36,621.66,1.706]
[1743210717738,1.22350652,622.35,621.66,1.706]
[1743210717939,1.22350652,622.34,621.66,1.706]
[1743210718140,1.22350652,622.33,621.66,1.706]
[1743210718336,1.22350652,622.32,621.66,2.853]
[1743210718537,1.22350652,622.31,621.66,2.853]
[1743210718839,0.93896446,622.31,621.66,2.853]
[1743210719036,1.22334881,622.3,621.66,2.853]
[1743210719239,1.22334881,622.29,621.66,2.853]
[1743210719540,1.22334881,622.28,621.66,2.853]
[1743210719736,1.22334881,622.27,621.66,2.853]
[1743210719935,1.22334881,622.26,621.66,2.853]
[1743210720139,1.22334881,622.25,621.66,2.853]
[1743210720440,1.22334881,622.24,621.66,2.853]
[1743210720639,1.22334881,622.23,621.66,2.853]
[1743210720833,1.22334881,622.22,621.66,2.853]
[1743210721041,1.22334881,622.21,621.66,2.853]
[1743210721342,1.22334881,622.2,621.66,2.853]
[1743210721541,1.22334881,622.19,621.66,2.853]
[1743210721742,1.22334881,622.18,621.66,2.853]
[1743210721943,1.22334881,622.17,621.66,2.853]
[1743210722140,0.93896446,622.17,621.66,2.853]
[1743210722336,1.2230761,622.16,621.66,2.853]
[1743210722540,1.2230761,622.15,621.66,2.853]
[1743210722743,1.2230761,622.14,621.66,2.853]
[1743210722945,1.2230761,622.13,621.66,2.853]
[1743210723244,1.2230761,622.12,621.66,2.853]
[1743210723443,1.2230761,622.11,621.66,2.853]
[1743210723647,1.2230761,622.1,621.66,2.853]
[1743210723845,1.2230761,622.09,621.66,2.853]
[1743210724046,2.16204056,622.08,621.66,1.985]
[1743210724246,1.22273736,622.07,621.66,1.985]
[1743210724447,1.22273736,622.06,621.66,1.985]
[1743210724642,1.22273736,622.05,621.66,1.985]
[1743210724846,1.22273736,622.04,621.66,1.985]
[1743210725048,1.22273736,622.03,621.66,1.985]
[1743210725242,1.22273736,622.02,621.66,1.985]
[1743210725548,2.16170182,622.01,621.66,1.985]
[1743210725747,1.22273736,622.0,621.66,1.985]
[1743210725949,1.22273736,621.99,621.66,1.985]
[1743210726142,1.22273736,621.98,621.66,1.985]
[1743210726340,1.22273736,621.97,621.66,1.985]
[1743210726545,1.22273736,621.96,621.66,1.985]
[1743210726747,1.22273736,621.95,621.66,1.985]
[1743210727048,1.22273736,621.94,621.66,1.985]
[1743210727241,1.22273736,621.93,621.66,1.985]
[1743210727446,1.22273736,621.92,621.66,1.985]
[1743210727642,2.16170182,621.91,621.66,1.985]
[1743210727846,1.22273736,621.9,621.66,1.985]
[1743210728049,1.22273736,621.89,621.66,1.985]
[1743210728350,0.93896446,621.88,621.66,1.985]
[1743210728952,0.93896446,621.87,621.66,1.985]
[1743210729250,0.93896446,621.86,621.66,1.985]
[1743210729850,0.27994868,621.97,621.66,1.985]
[1743210730247,2.16050832,621.96,621.66,1.985]
[1743210730447,2.16050832,621.95,621.66,1.985]
[1743210730650,1.22241029,621.94,621.66,1.985]
[1743210730851,1.22241029,621.93,621.66,1.985]
[1743210731045,0.93809803,621.93,621.66,1.985]
[1743210731250,1.22240748,621.92,621.66,1.985]
[1743210731553,1.22240748,621.91,621.66,1.985]
[1743210731747,1.22240748,621.9,621.66,1.985]
[1743210731947,0.93809803,621.91,621.66,1.985]
[1743210732250,0.32126965,622.53,621.66,1.985]
[1743210732453,1.22265233,622.52,621.66,1.985]
[1743210732654,1.22265233,622.51,621.66,1.985]